bitfinex-derivatives/quotes_ETHF0:USTF0_20240928
["timestamp","ask_amount","ask_price","bid_price","bid_amount"]
[1727526361315,1.35140963,2667.3,2667.2,0.699]
[1727526361715,1.83924346,2667.3,2667.2,0.699]
[1727526361919,1.35136462,2667.3,2667.2,1.07386]
[1727526362416,1.35136462,2667.3,2667.2,0.699]
[1727526363719,0.97651462,2667.3,2667.2,1.07386]
[1727526365519,1.35136462,2667.3,2667.2,1.07386]
[1727526366116,0.97651462,2667.3,2667.2,1.07386]
[1727526366414,0.97651462,2667.4,2667.3,0.37485]
[1727526366609,1.35135462,2667.4,2667.3,0.37485]
[1727526369321,0.37485,2667.3,2667.2,1.07385]
[1727526370016,1.35136462,2667.4,2667.3,0.37485]
[1727526375442,0.37485,2667.4,2667.3,0.37485]
[1727526376147,0.37485,2667.3,2667.2,1.07385]
[1727526378135,0.37484,2667.4,2667.3,0.37484]
[1727526379542,1.83923346,2667.4,2667.3,1.35822098]
[1727526381840,1.83923346,2667.4,2667.3,0.98338098]
[1727526383450,0.37484,2667.4,2667.3,0.98338098]
[1727526383851,1.72484,2667.4,2667.3,0.98338098]
[1727526384041,9.61854,2667.4,2667.3,0.98338098]
[1727526384249,16.77964,2667.4,2667.3,0.98338098]
[1727526384549,18.09344,2667.4,2667.3,0.98338098]
[1727526384750,1.31198,2667.3,2667.2,0.699]
[1727526384947,5.10577121,2667.3,2667.2,0.699]
[1727526385554,2.66198,2667.3,2667.2,0.699]
[1727526385948,5.10577121,2667.3,2667.2,0.699]
[1727526386446,2.66198,2667.3,2667.2,0.699]
[1727526387746,4.61602464,2667.3,2667.2,0.699]
[1727526387980,2.66198,2667.3,2667.2,0.699]
[1727526388655,5.86978,2667.3,2667.2,0.699]
[1727526388950,5.90418,2667.3,2667.2,0.699]
[1727526389552,7.85770377,2667.3,2667.2,0.699]
[1727526389953,5.90418,2667.3,2667.2,0.699]
[1727526390951,7.85799671,2667.3,2667.2,0.699]
[1727526392155,5.90418,2667.3,2667.2,0.699]
[1727526393058,7.85775389,2667.3,2667.2,0.699]
[1727526394152,11.60655389,2667.3,2667.2,0.699]
[1727526394353,17.83055389,2667.3,2667.2,0.699]
[1727526396161,17.83011395,2667.3,2667.2,0.699]
[1727526396346,15.87698,2667.3,2667.2,0.699]
[1727526396659,17.83004363,2667.3,2667.2,0.699]
[1727526397959,23.83004363,2667.3,2667.2,0.699]
[1727526398158,24.76717363,2667.3,2667.2,0.699]
[1727526398364,0.37492,2666.8,2666.7,1.2931]
[1727526398865,5.10225608,2666.8,2666.7,1.2931]
[1727526399458,4.49952,2666.8,2666.7,1.2931]
[1727526399962,6.45225608,2666.8,2666.7,1.2931]
[1727526400259,4.59699878,2666.8,2666.7,1.2931]
[1727526402460,0.97562385,2666.8,2666.7,1.2931]
[1727526402661,0.97562385,2666.8,2666.7,1.66803]
[1727526402861,4.18342385,2666.9,2666.7,1.66803]
[1727526403164,4.55833385,2666.9,2666.7,1.66803]
[1727526403564,0.37492,2666.8,2666.7,1.2931]
[1727526403767,4.55833385,2666.9,2666.7,1.66803]
[1727526404065,4.55833385,2666.9,2666.8,24.3]
[1727526405462,3.58271,2666.9,2666.8,24.3]
[1727526405665,0.37491,2666.9,2666.8,24.3]
[1727526406062,3.58271,2666.9,2666.8,24.3]
[1727526407989,1.35052385,2667.0,2666.8,24.67492]
[1727526408161,0.3749,2667.0,2666.9,1.393]
[1727526408360,1.35051385,2667.1,2666.9,1.7679]
[1727526408559,4.18342385,2667.2,2667.0,0.37489]
[1727526408767,0.37488,2667.1,2667.0,0.37489]
[1727526409068,0.37488,2667.1,2666.9,3.1502]
[1727526409468,4.55829385,2667.2,2667.0,0.37489]
[1727526409664,0.37488,2667.1,2667.0,0.37489]
[1727526411096,0.37488,2667.1,2666.9,3.1502]
[1727526411566,0.37489,2667.0,2666.9,3.1502]
[1727526412068,0.37488,2667.1,2667.0,0.37489]
[1727526412871,3.2078,2667.2,2667.1,0.37488]
[1727526413456,2.32562385,2667.3,2667.1,0.37488]
[1727526413666,2.70047385,2667.3,2667.2,0.885]
[1727526420175,1.72485,2667.3,2667.2,0.885]
[1727526421069,2.81377878,2667.3,2667.1,0.885]
[1727526421271,2.6972,2667.2,2667.1,0.885]
[1727526421474,4.16097878,2667.2,2667.1,0.885]
[1727526421669,5.47300878,2667.2,2667.1,0.885]
[1727526422168,4.00923,2667.2,2667.1,0.885]
[1727526422372,5.47300878,2667.2,2667.1,0.885]
[1727526422774,4.00923,2667.2,2667.1,0.885]
[1727526422974,5.47300878,2667.2,2667.1,0.885]
[1727526426279,4.53583878,2667.2,2667.1,0.885]
[1727526428580,3.07206,2667.2,2667.1,0.885]
[1727526428877,6.27986,2667.2,2667.1,0.885]
[1727526431580,6.39562908,2667.2,2667.1,0.885]
[1727526431784,1.84062908,2667.2,2667.1,0.885]
[1727526432679,1.84062908,2667.2,2667.1,1.25988]
[1727526432883,0.37486,2667.2,2667.1,1.25988]
[1727526433282,1.84062908,2667.2,2667.1,0.885]
[1727526433481,0.37486,2667.2,2667.1,0.885]
[1727526433802,1.50016908,2667.2,2667.1,1.25988]
[1727526433973,0.0344,2667.2,2667.1,22.59990829]
[1727526434178,0.0344,2667.2,2667.1,22.59816988]
[1727526434376,0.37481,2667.6,2667.1,23.65156004]
[1727526434678,0.37481,2667.6,2667.5,0.37482]
[1727526434885,0.3748,2667.7,2667.6,0.37481]
[1727526435079,6.03116908,2667.8,2667.6,0.50919]
[1727526435584,0.37479,2667.7,2667.6,0.50919]
[1727526436578,0.37479,2667.7,2667.6,0.884]
[1727526436784,0.37479,2667.7,2667.6,0.50919]
[1727526437874,0.37479,2667.7,2667.6,0.88399]
[1727526438989,0.37479,2667.7,2667.6,0.50919]
[1727526439481,0.37479,2667.7,2667.6,0.88399]
[1727526439689,0.37479,2667.7,2667.6,0.50919]
[1727526439886,4.94019,2667.8,2667.7,0.37479]
[1727526440087,0.37479,2667.7,2667.6,0.88399]
[1727526440676,0.37479,2667.7,2667.6,0.50919]
[1727526441689,0.37479,2667.7,2667.6,0.884]
[1727526442183,3.58258,2667.8,2667.7,0.37479]
[1727526442685,3.58258,2667.8,2667.6,0.50919]
[1727526442686,0.37479,2667.7,2667.6,0.88399]
[1727526443888,0.37479,2667.7,2667.6,0.50919]
[1727526444093,3.58258,2667.8,2667.7,0.37479]
[1727526444490,3.58258,2667.8,2667.6,0.88399]
[1727526444693,0.37479,2667.7,2667.6,0.88399]
[1727526445986,3.2078,2667.8,2667.6,0.88399]
[1727526445987,3.58259,2667.8,2667.7,0.37479]
[1727526446490,3.58259,2667.8,2667.6,0.88399]
[1727526446892,0.37479,2667.7,2667.6,0.88399]
[1727526448191,0.37478,2667.8,2667.7,0.37479]
[1727526448392,2.7219,2667.9,2667.6,0.88399]
[1727526448593,0.37479,2667.7,2667.6,0.88399]
[1727526449588,1.72479,2667.7,2667.6,0.50919]
[1727526450390,1.35,2667.7,2667.6,0.50919]
[1727526450696,1.72479,2667.7,2667.6,0.884]
[1727526452194,1.72479,2667.7,2667.6,0.50919]
[1727526453192,1.72479,2667.7,2667.6,0.884]
[1727526453392,1.72479,2667.7,2667.6,0.50919]
[1727526454295,1.72479,2667.7,2667.6,1.82159]
[1727526455496,1.72479,2667.7,2667.6,2.1964]
[1727526460801,1.35,2667.7,2667.6,2.1964]
[1727526462004,0.37479,2667.7,2667.6,1.82159]
[1727526462599,0.37479,2667.7,2667.6,2.1964]
[1727526469811,0.37479,2667.7,2667.6,2.1954]
[1727526470009,0.37479,2667.7,2667.6,2.57021]
[1727526471016,0.37479,2667.7,2667.6,2.1954]
[1727526472209,0.37479,2667.7,2667.6,2.57021]
[1727526472507,0.37479,2667.7,2667.6,2.1954]
[1727526472714,0.37479,2667.7,2667.6,2.57021]
[1727526473015,0.37479,2667.7,2667.6,2.1954]
[1727526475012,0.37479,2667.7,2667.6,2.57021]
[1727526476415,0.37479,2667.7,2667.6,3.55248409]
[1727526478217,1.84055908,2667.7,2667.6,4.76540329]
[1727526478513,1.87495908,2667.7,2667.6,4.76540329]
[1727526479010,1.87495908,2667.7,2667.6,4.76540333]
[1727526479211,1.87495908,2667.7,2667.6,5.25654038]
[1727526480219,0.40919,2667.7,2667.6,5.25654038]
[1727526480617,1.75919,2667.7,2667.6,2.68633038]
[1727526480813,7.85671608,2667.7,2667.6,3.07985649]
[1727526481010,7.85671608,2667.7,2667.6,1.86700036]
[1727526482216,7.85671608,2667.7,2667.6,3.08085183]
[1727526482424,7.85671608,2667.7,2667.6,3.08082987]
[1727526482717,7.85671608,2667.7,2667.6,3.08080927]
[1727526482916,7.85671608,2667.7,2667.6,1.86700036]
[1727526483117,7.85671608,2667.7,2667.6,3.08080509]
[1727526483824,7.85671608,2667.7,2667.6,1.86700036]
[1727526484118,7.85671608,2667.7,2667.6,3.08080576]
[1727526484321,7.85671608,2667.7,2667.6,3.0807576]
[1727526486618,6.91972608,2667.7,2667.6,1.86700036]
[1727526487615,6.91972608,2667.7,2667.6,3.08069424]
[1727526487817,6.91972608,2667.7,2667.6,1.86700036]
[1727526488019,5.56972608,2667.7,2667.6,3.08069805]
[1727526488220,5.56972608,2667.7,2667.6,3.08069217]
[1727526488517,5.56972608,2667.7,2667.6,1.86700036]
[1727526490029,5.56972608,2667.7,2667.6,3.08066322]
[1727526490524,5.56972608,2667.7,2667.6,1.86700036]
[1727526491622,5.56972608,2667.7,2667.6,3.08066749]
[1727526492424,2.36192608,2667.7,2667.6,3.08066749]
[1727526493932,2.36192608,2667.7,2667.6,3.08066895]
[1727526495430,2.32752608,2667.7,2667.6,3.08066895]
[1727526496932,2.32752608,2667.7,2667.6,3.08070172]
[1727526499333,2.32752608,2667.7,2667.6,3.45551172]
[1727526500324,2.32752608,2667.7,2667.6,3.08070172]
[1727526500525,2.32752608,2667.7,2667.6,3.45551172]
[1727526503231,2.32752608,2667.7,2667.6,3.08070172]
[1727526503527,2.32752608,2667.7,2667.6,3.45551172]
[1727526506435,2.32752608,2667.7,2667.6,3.45551574]
[1727526509134,2.32752608,2667.7,2667.6,27.75551574]
[1727526509534,2.32752608,2667.7,2667.6,27.38070574]
[1727526509736,2.32752608,2667.7,2667.6,27.75551574]
[1727526509932,2.32752608,2667.7,2667.6,27.38070574]
[1727526511139,2.32752608,2667.7,2667.6,27.38075681]
[1727526512443,2.32752608,2667.7,2667.6,27.38069481]
[1727526512735,2.32752608,2667.7,2667.6,26.39675645]
[1727526512936,2.32752608,2667.7,2667.6,26.39575645]
[1727526513142,2.32752608,2667.7,2667.6,27.37970368]
[1727526514544,2.32752608,2667.7,2667.6,26.39575645]
[1727526515639,2.32752608,2667.7,2667.6,27.37973742]
[1727526516234,2.32752608,2667.7,2667.6,26.39575645]
[1727526517250,2.32752608,2667.7,2667.6,26.77056645]
[1727526517451,2.32752608,2667.7,2667.6,26.39575645]
[1727526517653,2.32752608,2667.7,2667.6,27.3797926]
[1727526518146,2.32752608,2667.7,2667.6,26.77056645]
[1727526518935,2.32752608,2667.7,2667.6,27.75460154]
[1727526519139,2.32752608,2667.7,2667.6,27.86916759]
[1727526520541,2.32752608,2667.7,2667.6,27.37983504]
[1727526520741,2.32752608,2667.7,2667.6,27.86935479]
[1727526521039,2.32752608,2667.7,2667.6,27.38004628]
[1727526521236,2.32752608,2667.7,2667.6,27.86935479]
[1727526523852,2.36192608,2667.7,2667.6,27.86935479]
[1727526525652,2.36192608,2667.7,2667.6,27.8696139]
[1727526528049,2.36192608,2667.7,2667.6,27.8676139]
[1727526528445,2.36192608,2667.7,2667.6,26.9876139]
[1727526528651,2.36192608,2667.7,2667.6,27.8676139]
[1727526530448,2.36192608,2667.7,2667.6,2.6876139]
[1727526530652,2.36192608,2667.7,2667.1,3.2078]
[1727526530653,7.16206,2667.5,2667.1,0.98444398]
[1727526530955,7.16206,2667.5,2667.0,3.76624398]
[1727526530956,0.37488,2667.1,2667.0,3.76624398]
[1727526531258,4.17437398,2667.1,2667.0,1.3302]
[1727526531459,1.72488,2667.1,2667.0,1.3302]
[1727526532249,3.68062337,2667.1,2667.0,1.3302]
[1727526533349,1.72488,2667.1,2667.0,1.3302]
[1727526533856,3.68062337,2667.1,2667.0,1.3302]
[1727526534356,1.72488,2667.1,2667.0,1.3302]
[1727526534547,3.19080138,2667.1,2667.0,1.3302]
[1727526534748,3.19075572,2667.1,2667.0,1.3302]
[1727526534952,3.1907558,2667.1,2667.0,1.3302]
[1727526536548,1.72488,2667.1,2667.0,1.3302]
[1727526536749,3.1907558,2667.1,2667.0,1.3302]
[1727526536944,4.5236558,2667.1,2667.0,1.3302]
[1727526537353,3.05778,2667.1,2667.0,1.3302]
[1727526537656,4.5236558,2667.1,2667.0,1.3302]
[1727526538359,3.05778,2667.1,2667.0,1.3302]
[1727526542756,6.26558,2667.1,2667.0,1.3302]
[1727526544856,12.49058,2667.1,2667.0,1.3302]
[1727526547065,11.15768,2667.1,2667.0,1.3302]
[1727526557579,12.09488,2667.1,2667.0,1.3302]
[1727526558172,15.84448,2667.1,2667.0,1.3302]
[1727526558979,0.37489,2667.0,2666.9,1.3495]
[1727526559369,5.49579,2667.0,2666.9,1.3495]
[1727526560374,8.70359,2667.0,2666.9,1.3495]
[1727526561783,0.93731,2666.8,2666.7,1.4367]
[1727526561979,0.37496,2666.5,2666.4,5.0029]
[1727526562282,1.35,2666.5,2666.4,29.3029]
[1727526562479,1.72496,2666.5,2666.4,29.3029]
[1727526562973,1.72496,2666.5,2666.4,28.4239]
[1727526563173,1.72496,2666.5,2666.4,29.3029]
[1727526563882,1.72496,2666.5,2666.4,4.1239]
[1727526567986,3.58275,2666.6,2666.4,4.1239]
[1727526568188,1.72496,2666.5,2666.4,4.1239]
[1727526571780,1.35,2666.5,2666.4,4.1239]
[1727526571984,1.72496,2666.5,2666.4,4.1239]
[1727526575090,1.35,2666.6,2666.4,4.1239]
[1727526575396,0.37494,2666.7,2666.4,4.49887]
[1727526576397,7.575,2666.8,2666.5,0.37496]
[1727526576398,9.41310392,2666.8,2666.5,0.37496]
[1727526576708,7.94993,2666.8,2666.5,0.37496]
[1727526576999,0.37493,2666.7,2666.5,0.37496]
[1727526577196,6.02097392,2666.9,2666.5,1.72495]
[1727526577395,0.37492,2666.8,2666.5,2.70939398]
[1727526577994,0.37492,2666.8,2666.5,1.72495]
[1727526578193,0.37492,2666.8,2666.5,2.70939398]
[1727526578588,1.72492,2666.8,2666.5,2.70939398]
[1727526579388,1.72492,2666.8,2666.5,1.72495]
[1727526579589,0.37494,2666.7,2666.5,1.72495]
[1727526580193,0.37494,2666.7,2666.5,2.70939398]
[1727526582095,0.37494,2666.7,2666.5,1.72495]
[1727526582305,0.37494,2666.7,2666.5,2.70939398]
[1727526589998,0.37493,2666.7,2666.5,2.33444398]
[1727526591604,0.37493,2666.7,2666.5,2.70940398]
[1727526592396,0.37493,2666.7,2666.6,0.37495]
[1727526592606,4.67097392,2666.9,2666.6,5.1004]
[1727526592801,0.37492,2666.8,2666.7,0.878]
[1727526593504,0.37492,2666.8,2666.7,2.2197]
[1727526594401,0.37492,2666.8,2666.7,2.59463]
[1727526595110,0.37492,2666.8,2666.7,2.2197]
[1727526596302,0.37492,2666.8,2666.7,2.59463]
[1727526598000,3.2078,2666.9,2666.7,2.59463]
[1727526598205,3.58271,2666.9,2666.8,2.8321]
[1727526600604,1.46317392,2667.0,2666.8,7.9317]
[1727526600810,1.46317392,2667.0,2666.8,5.54145398]
[1727526600811,0.37489,2667.0,2666.8,5.54145398]
[1727526601411,0.37489,2667.0,2666.9,0.37491]
[1727526601798,1.83806392,2667.1,2666.8,5.16654398]
[1727526602025,0.37489,2667.0,2666.9,0.37491]
[1727526602312,1.46317392,2667.1,2667.0,0.37489]
[1727526602313,0.37488,2667.1,2667.0,0.37489]
[1727526602736,0.37488,2667.1,2667.0,1.35933398]
[1727526602917,0.37488,2667.1,2667.0,2.67822398]
[1727526603209,3.2078,2667.2,2667.1,0.37488]
[1727526603515,3.2078,2667.2,2667.1,1.35932398]
[1727526603814,3.2078,2667.2,2667.1,6.3187971]
[1727526604111,3.2078,2667.2,2667.1,30.6187971]
[1727526604319,4.52919392,2667.5,2667.4,0.37484]
[1727526604617,3.06602,2667.5,2667.4,0.878]
[1727526605014,3.06602,2667.5,2667.4,2.1969]
[1727526606014,1.71602,2667.5,2667.4,2.1969]
[1727526606413,3.06602,2667.5,2667.4,2.1969]
[1727526608413,3.06602,2667.5,2667.4,0.878]
[1727526611916,3.06602,2667.5,2667.4,1.25284]
[1727526612110,3.06602,2667.5,2667.4,0.878]
[1727526613414,3.06602,2667.5,2667.4,1.25284]
[1727526613805,3.06602,2667.5,2667.4,0.878]
[1727526614922,3.06602,2667.5,2667.4,1.25284]
[1727526619216,1.71602,2667.5,2667.4,1.25284]
[1727526619918,1.3412,2667.5,2667.4,1.25284]
[1727526620121,9.7808,2667.9,2667.8,0.37478]
[1727526620320,0.37479,2667.7,2667.6,1.7248]
[1727526620518,0.37479,2667.7,2667.6,2.7823]
[1727526620725,0.37479,2667.7,2667.6,3.6603]
[1727526621022,0.37479,2667.7,2667.6,4.03511]
[1727526622118,0.37479,2667.7,2667.6,3.6603]
[1727526623526,0.37479,2667.7,2667.6,4.03511]
[1727526627427,0.37479,2667.7,2667.6,3.6603]
[1727526628423,0.37479,2667.7,2667.6,4.03511]
[1727526629924,0.37479,2667.7,2667.6,3.15711]
[1727526630227,0.93699,2667.7,2667.5,0.877]
[1727526630428,4.93261,2667.6,2667.5,0.877]
[1727526633916,4.93261,2667.6,2667.5,1.25182]
[1727526635726,3.58261,2667.6,2667.5,1.25182]
[1727526635931,3.2078,2667.6,2667.5,2.60182]
[1727526636332,1.73438,2667.8,2667.7,0.37479]
[1727526636522,0.37478,2667.8,2667.7,0.37479]
[1727526636932,0.37478,2667.8,2667.7,1.74379]
[1727526640425,0.37478,2667.8,2667.7,1.369]
[1727526641032,0.37478,2667.8,2667.7,1.74379]
[1727526641225,0.37478,2667.8,2667.7,1.369]
[1727526646133,0.37478,2667.8,2667.7,1.74379]
[1727526646328,0.37478,2667.8,2667.7,1.369]
[1727526647429,1.83795392,2667.8,2667.7,1.369]
[1727526648134,1.83795392,2667.8,2667.7,1.74379]
[1727526648931,1.83795392,2667.8,2667.7,1.369]
[1727526649633,1.83795392,2667.8,2667.7,1.74379]
[1727526649830,1.83795392,2667.8,2667.7,1.369]
[1727526652943,1.83795392,2667.8,2667.7,2.246]
[1727526653942,0.37481,2667.6,2667.5,0.98444398]
[1727526654142,5.05051881,2667.6,2667.5,0.98444398]
[1727526654342,0.37482,2667.5,2667.4,4.97987398]
[1727526654548,0.37482,2667.5,2667.4,6.68021283]
[1727526654748,0.37482,2667.5,2667.4,6.68019401]
[1727526654944,0.37482,2667.5,2667.4,6.18953739]
[1727526655150,0.37482,2667.5,2667.4,6.30536401]
[1727526655443,14.59142337,2667.5,2667.4,2.2222]
[1727526655650,14.59142337,2667.5,2667.4,0.877]
[1727526657049,10.84262337,2667.5,2667.4,0.877]
[1727526657253,0.37485,2667.3,2667.2,1.35798218]
[1727526657456,1.84262501,2667.3,2667.2,1.86012218]
[1727526657947,1.84262501,2667.3,2667.2,0.877]
[1727526658352,1.84262501,2667.3,2667.2,1.25186]
[1727526658855,5.05042501,2667.3,2667.2,1.25186]
[1727526659048,5.05042501,2667.3,2667.2,2.23498218]
[1727526659251,3.58265,2667.3,2667.2,2.23498218]
[1727526659951,3.58265,2667.3,2667.2,1.25186]
[1727526660151,5.05042501,2667.3,2667.2,1.25186]
[1727526660353,3.58265,2667.3,2667.2,2.23498218]
[1727526660750,5.05042501,2667.3,2667.2,1.25186]
[1727526661052,3.58265,2667.3,2667.2,2.23498218]
[1727526662055,3.58265,2667.3,2667.2,1.86012218]
[1727526662651,4.93265,2667.3,2667.2,1.86012218]
[1727526663250,4.93265,2667.3,2667.2,0.98312218]
[1727526663462,11.57432337,2667.3,2667.2,0.877]
[1727526663762,10.63719337,2667.3,2667.2,0.877]
[1727526664149,8.68145,2667.3,2667.2,0.877]
[1727526664552,0.37486,2667.2,2667.1,1.4174]
[1727526664757,1.84139441,2667.2,2667.1,1.4174]
[1727526665360,8.06639441,2667.2,2667.1,1.4174]
[1727526666363,0.37488,2667.1,2667.0,0.877]
[1727526666555,1.73938,2667.1,2667.0,0.877]
[1727526675369,7.96438,2667.1,2667.0,0.877]
[1727526679075,7.96438,2667.1,2667.0,1.25189]
[1727526679261,0.37486,2667.3,2667.1,0.37488]
[1727526679462,0.37486,2667.3,2667.0,0.877]
[1727526679463,3.19138441,2667.4,2667.2,3.10096]
[1727526679767,1.72485,2667.4,2667.3,25.6927]
[1727526681277,1.72485,2667.4,2667.3,1.3927]
[1727526683368,2.66195,2667.4,2667.3,1.3927]
[1727526683568,4.12848441,2667.4,2667.3,1.3927]
[1727526685372,10.35348441,2667.4,2667.3,1.3927]
[1727526687279,8.88695,2667.4,2667.3,1.3927]
[1727526687477,10.35348441,2667.4,2667.3,1.3927]
[1727526688067,9.41638441,2667.4,2667.3,1.3927]
[1727526688881,7.94985,2667.4,2667.3,1.3927]
[1727526689576,9.41638441,2667.4,2667.3,1.3927]
[1727526690575,11.15765,2667.4,2667.3,1.3927]
[1727526690974,12.62418441,2667.4,2667.3,1.3927]
[1727526691173,11.15765,2667.4,2667.3,1.3927]
[1727526691673,12.62418441,2667.4,2667.3,1.3927]
[1727526692177,9.41638441,2667.4,2667.3,1.3927]
[1727526692381,12.62418441,2667.4,2667.3,1.3927]
[1727526692976,9.41638441,2667.4,2667.3,1.3927]
[1727526693180,13.56128441,2667.4,2667.3,1.3927]
[1727526696185,10.35348441,2667.4,2667.3,1.3927]
[1727526696486,8.88695,2667.4,2667.3,1.3927]
[1727526696678,12.09475,2667.4,2667.3,1.3927]
[1727526697578,8.88695,2667.4,2667.3,1.3927]
[1727526697780,12.09475,2667.4,2667.3,1.3927]
[1727526698084,14.05049337,2667.4,2667.3,1.3927]
[1727526698487,10.84269337,2667.4,2667.3,1.3927]
[1727526698983,14.05049337,2667.4,2667.3,1.3927]
[1727526700488,8.88695,2667.4,2667.3,1.3927]
[1727526700685,12.09475,2667.4,2667.3,1.3927]
[1727526701382,14.54424398,2667.4,2667.3,1.3927]
[1727526705898,14.57864398,2667.4,2667.3,1.3927]
[1727526706088,13.26669398,2667.4,2667.0,0.98312218]
[1727526706292,0.37489,2667.0,2666.9,1.3596]
[1727526706486,0.37492,2666.8,2666.7,2.7174]
[1727526706690,4.93272,2666.8,2666.7,2.7174]
[1727526706890,6.89047104,2666.8,2666.7,2.7174]
[1727526707501,4.93272,2666.8,2666.7,2.7174]
[1727526707694,6.89047104,2666.8,2666.7,2.7174]
[1727526708106,4.93272,2666.8,2666.7,2.7174]
[1727526708509,6.40060008,2666.8,2666.7,2.7174]
[1727526714815,0.37494,2666.7,2666.5,25.65807218]
[1727526715007,3.75526008,2666.6,2666.3,2.64151218]
[1727526715209,1.72498,2666.4,2666.3,2.26652218]
[1727526715402,1.72498,2666.4,2666.3,26.9173]
[1727526715711,1.72498,2666.4,2666.3,2.6173]
[1727526717322,1.35,2666.4,2666.3,2.6173]
[1727526717609,1.35,2666.4,2666.3,2.99229]
[1727526718019,4.5578,2666.5,2666.3,2.99229]
[1727526718206,4.5578,2666.5,2666.4,1.69198]
[1727526718404,3.2078,2666.5,2666.4,1.317]
[1727526718813,3.2078,2666.5,2666.4,1.69198]
[1727526719311,3.58276,2666.5,2666.4,1.317]
[1727526720607,1.46788008,2666.7,2666.4,6.4174]
[1727526720807,1.46788008,2666.7,2666.5,0.37495]
[1727526720808,0.37494,2666.7,2666.5,0.37495]
[1727526721012,1.35,2666.6,2666.5,0.37495]
[1727526722318,4.5578,2666.8,2666.6,0.37494]
[1727526722514,4.5578,2666.8,2666.7,3.06533]
[1727526722720,4.5578,2666.8,2666.7,2.6904]
[1727526723321,4.93272,2666.8,2666.7,2.6904]
[1727526725119,1.72492,2666.8,2666.7,2.6904]
[1727526725431,7.94991,2666.9,2666.7,3.06533]
[1727526725720,7.94991,2666.9,2666.8,1.2828]
[1727526726023,6.40056008,2667.1,2666.9,0.3749]
[1727526726211,6.40056008,2667.1,2666.9,0.37491]
[1727526726212,4.93269,2667.1,2666.9,0.37491]
[1727526726412,0.37489,2667.0,2666.8,1.65771]
[1727526726618,4.93269,2667.1,2666.9,0.37491]
[1727526727224,4.93269,2667.1,2666.8,1.2828]
[1727526727225,0.37489,2667.0,2666.8,1.65771]
[1727526728917,0.37489,2667.0,2666.9,0.37491]
[1727526729320,0.37491,2666.9,2666.8,1.2828]
[1727526729723,1.72491,2666.9,2666.8,1.2828]
[1727526730424,1.72491,2666.9,2666.8,2.1578]
[1727526736528,1.72491,2666.9,2666.8,1.2828]
[1727526736725,0.37492,2666.8,2666.7,2.2771]
[1727526736924,0.37492,2666.8,2666.7,1.4041]
[1727526736925,5.05060008,2666.8,2666.7,1.4041]
[1727526737228,3.58272,2666.8,2666.7,1.4041]
[1727526739936,0.37499,2666.3,2666.1,0.37501]
[1727526740131,3.0477,2666.2,2666.1,1.3673]
[1727526744329,18.6491,2666.2,2665.8,25.28312218]
[1727526744533,1.72505,2665.9,2665.6,4.06120218]
[1727526744842,1.72505,2665.9,2665.6,3.07808]
[1727526744843,1.35,2665.7,2665.6,3.07808]
[1727526745429,1.35,2665.7,2665.6,2.703]
[1727526745731,1.35,2665.7,2665.3,0.873]
[1727526745732,0.37511,2665.5,2665.3,0.873]
[1727526745930,0.37511,2665.5,2665.2,4.0822]
[1727526745931,1.72512,2665.4,2665.2,4.0822]
[1727526746338,0.37512,2665.4,2665.2,1.3227]
[1727526746734,1.35,2665.3,2665.2,1.3227]
[1727526750442,1.72513,2665.3,2665.2,1.3227]
[1727526753145,5.47713,2665.3,2665.2,1.3227]
[1727526754152,5.47713,2665.3,2664.9,26.998]
[1727526754153,5.102,2665.3,2664.9,2.698]
[1727526754440,9.5594,2665.6,2665.0,1.3539]
[1727526754441,3.2078,2665.1,2665.0,1.3539]
[1727526754645,3.2078,2665.1,2665.0,1.72907]
[1727526757540,3.2078,2665.1,2665.0,1.3539]
[1727526757734,3.2078,2665.1,2665.0,1.72907]
[1727526758645,4.93295,2665.2,2665.0,1.72907]
[1727526761549,4.93296,2665.2,2665.0,1.72907]
[1727526762442,0.37516,2665.1,2665.0,1.72907]
[1727526762644,4.93295,2665.2,2665.0,1.72907]
[1727526763449,0.93779,2665.5,2665.2,0.37515]
[1727526763450,0.37514,2665.3,2665.2,0.37515]
[1727526763649,1.72514,2665.3,2665.2,0.37515]
[1727526763851,1.72513,2665.3,2665.2,0.37515]
[1727526764253,1.72513,2665.3,2665.1,0.37515]
[1727526764750,3.2078,2665.5,2665.0,1.3539]
[1727526764951,1.35,2665.4,2665.3,0.37512]
[1727526765348,1.72512,2665.4,2665.2,0.37514]
[1727526765549,1.72512,2665.4,2665.3,1.31]
[1727526765954,1.35,2665.4,2665.3,1.68513]
[1727526766171,7.3358,2665.8,2665.3,8.22182]
[1727526766351,7.3358,2665.8,2665.7,0.37507]
[1727526766653,3.2078,2665.8,2665.7,0.37507]
[1727526767548,4.5578,2665.8,2665.7,0.37507]
[1727526767954,3.2078,2665.8,2665.7,4.12627]
[1727526768260,1.35,2666.0,2665.9,0.37505]
[1727526768658,1.35,2666.1,2666.0,0.37503]
[1727526768852,1.35,2666.1,2666.0,1.62933]
[1727526770056,1.35,2666.1,2666.0,25.92933]
[1727526770354,1.72502,2666.1,2666.0,25.92933]
[1727526771161,1.35,2666.1,2666.0,25.92933]
[1727526771361,1.72502,2666.1,2666.0,25.92933]
[1727526776261,1.72502,2666.1,2666.0,25.5543]
[1727526776767,1.35,2666.1,2666.0,25.92932]
[1727526777668,1.72502,2666.1,2666.0,25.92932]
[1727526779562,1.72502,2666.1,2666.0,1.62932]
[1727526780073,1.72502,2666.1,2666.0,25.92932]
[1727526780962,1.72502,2666.1,2666.0,1.62932]
[1727526782270,1.72502,2666.1,2666.0,1.2543]
[1727526782271,2.66257,2666.1,2666.0,1.2543]
[1727526782464,2.66257,2666.1,2665.7,0.37507]
[1727526782465,1.72502,2666.1,2665.7,0.37507]
[1727526782665,0.37506,2665.8,2665.7,0.37507]